bitfinex/quotes_BTCUSD_20240803
["timestamp","ask_amount","ask_price","bid_price","bid_amount"]
[1722646202165,0.00291301,61563.0,61562.0,1.63659892]
[1722646202318,0.00291301,61563.0,61562.0,1.65859892]
[1722646202518,0.00291301,61563.0,61562.0,1.66822627]
[1722646202719,0.00291301,61563.0,61562.0,1.39257027]
[1722646202946,0.00291301,61563.0,61562.0,1.02505459]
[1722646203152,0.00291301,61563.0,61562.0,1.26871059]
[1722646203355,0.00291301,61563.0,61562.0,1.40161845]
[1722646203520,0.00291301,61563.0,61562.0,1.64727445]
[1722646203716,0.00291301,61563.0,61562.0,1.64727288]
[1722646204379,0.00291301,61563.0,61562.0,1.91092888]
[1722646204543,0.00291301,61563.0,61562.0,2.25103132]
[1722646204759,0.00291301,61563.0,61562.0,1.73923228]
[1722646205084,0.00291301,61563.0,61562.0,1.84923228]
[1722646205339,0.00191301,61563.0,61562.0,1.85523228]
[1722646205657,0.00991301,61563.0,61562.0,1.85823228]
[1722646206051,0.00991301,61563.0,61562.0,1.48257628]
[1722646206456,0.00991301,61563.0,61562.0,0.47894953]
[1722646206457,0.00891301,61563.0,61562.0,0.47894953]
[1722646206653,0.00891301,61563.0,61562.0,0.32348324]
[1722646206926,0.00091301,61563.0,61562.0,0.32348324]
[1722646207296,0.00091301,61563.0,61562.0,0.32448324]
[1722646207672,0.00091301,61563.0,61562.0,0.32248324]
[1722646207945,0.00091301,61563.0,61562.0,0.32448324]
[1722646208309,0.00091301,61563.0,61562.0,0.32348324]
[1722646208466,0.00091301,61563.0,61562.0,0.45948324]
[1722646209109,0.08211301,61563.0,61562.0,0.45048324]
[1722646209283,0.08211301,61563.0,61562.0,0.25048324]
[1722646209284,0.14691301,61563.0,61562.0,0.25048324]
[1722646209842,0.14691301,61563.0,61562.0,0.23648324]
[1722646210042,0.14691301,61563.0,61562.0,0.22248324]
[1722646210246,0.14791301,61563.0,61562.0,0.086024]
[1722646210467,0.14791301,61563.0,61562.0,0.072024]
[1722646210882,0.14691301,61563.0,61562.0,0.079024]
[1722646211083,0.14791301,61563.0,61562.0,0.065024]
[1722646211485,0.14791301,61563.0,61562.0,0.079024]
[1722646211720,0.14791301,61563.0,61562.0,0.014]
[1722646211721,0.14691301,61563.0,61562.0,0.014]
[1722646212138,0.14791301,61563.0,61562.0,0.014]
[1722646213288,0.14791301,61563.0,61562.0,0.17145924]
[1722646213535,0.00191301,61563.0,61562.0,0.19445924]
[1722646213739,0.00191301,61563.0,61562.0,0.39445924]
[1722646215147,0.00191301,61563.0,61562.0,0.51628724]
[1722646215297,0.00191301,61563.0,61562.0,1.04615924]
[1722646215666,0.00191301,61563.0,61562.0,1.16933237]
[1722646216001,0.00191301,61563.0,61562.0,1.55908837]
[1722646216195,0.00191301,61563.0,61562.0,1.54508837]
[1722646216196,0.00091301,61563.0,61562.0,1.54508837]
[1722646216601,0.00191301,61563.0,61562.0,1.57308837]
[1722646216803,0.00191301,61563.0,61562.0,1.57508837]
[1722646217210,0.00191301,61563.0,61562.0,1.57528342]
[1722646217620,0.00191301,61563.0,61562.0,1.57528537]
[1722646218757,0.00191301,61563.0,61562.0,1.62380283]
[1722646218984,0.00191301,61563.0,61562.0,1.58483938]
[1722646219371,0.00191301,61563.0,61562.0,1.84849538]
[1722646219625,0.00191301,61563.0,61562.0,1.95245478]
[1722646219843,0.00191301,61563.0,61562.0,2.4332746]
[1722646220055,0.00191301,61563.0,61562.0,2.22973579]
[1722646220256,0.00091301,61563.0,61562.0,2.21573579]
[1722646220474,0.00091301,61563.0,61562.0,2.20173579]
[1722646220643,0.00091301,61563.0,61562.0,2.44642373]
[1722646220867,0.00091301,61563.0,61562.0,2.20376773]
[1722646221025,0.00091301,61563.0,61562.0,2.20176773]
[1722646221224,0.00091301,61563.0,61562.0,2.24275665]
[1722646221427,0.5,61573.0,61572.0,1.163319]
[1722646221604,0.5,61573.0,61572.0,1.84443377]
[1722646221818,0.5,61573.0,61572.0,1.8518371]
[1722646222421,0.5,61573.0,61572.0,1.88542269]
[1722646222799,0.5,61573.0,61572.0,1.8417981]
[1722646223641,0.5,61573.0,61572.0,1.8427981]
[1722646224048,0.5,61573.0,61572.0,1.84279601]
[1722646224326,0.5,61573.0,61572.0,2.04789522]
[1722646224476,0.5,61573.0,61572.0,2.23134444]
[1722646224686,0.5,61573.0,61572.0,1.98872744]
[1722646224892,0.5,61573.0,61572.0,1.94773852]
[1722646225165,0.5,61573.0,61572.0,1.99130321]
[1722646225591,0.5,61573.0,61572.0,1.94773852]
[1722646225794,0.5,61573.0,61572.0,1.96830321]
[1722646226082,0.5,61573.0,61572.0,1.92673852]
[1722646226283,0.5,61573.0,61572.0,1.90822073]
[1722646226485,0.5,61573.0,61572.0,1.89575332]
[1722646226857,0.5,61573.0,61572.0,1.91775332]
[1722646227032,0.5,61573.0,61572.0,1.89818321]
[1722646227446,0.5,61573.0,61572.0,1.79535334]
[1722646227646,0.5,61573.0,61572.0,1.90849153]
[1722646227850,0.5,61573.0,61572.0,1.91849094]
[1722646228264,0.5,61573.0,61572.0,1.91849041]
[1722646228686,0.5,61573.0,61572.0,1.50429041]
[1722646228891,0.5,61573.0,61572.0,1.51629041]
[1722646229263,0.5,61573.0,61572.0,1.70489041]
[1722646229865,0.5,61573.0,61572.0,1.70589041]
[1722646230239,0.50091301,61573.0,61572.0,1.26167341]
[1722646230439,0.50091301,61573.0,61572.0,1.01705641]
[1722646230670,0.50091301,61573.0,61572.0,1.13653634]
[1722646230882,0.50091301,61573.0,61572.0,1.13753634]
[1722646231051,0.50091301,61573.0,61572.0,1.4821222]
[1722646231262,0.50091301,61573.0,61572.0,1.8257392]
[1722646231412,0.51730709,61573.0,61572.0,1.8257392]
[1722646232044,0.51730709,61573.0,61572.0,1.85048945]
[1722646232254,0.51730709,61573.0,61572.0,1.0159052]
[1722646232454,0.51730709,61573.0,61572.0,0.89391934]
[1722646232455,0.53230709,61573.0,61572.0,0.89391934]
[1722646232694,0.59510709,61573.0,61572.0,0.89391934]
[1722646233232,0.59310709,61573.0,61572.0,0.52749434]
[1722646233431,0.59310709,61573.0,61572.0,0.61674234]
[1722646233548,0.59310709,61573.0,61572.0,0.61774234]
[1722646233549,0.59510709,61573.0,61572.0,0.61774234]
[1722646233747,0.59510709,61573.0,61572.0,0.60620975]
[1722646233748,0.58010709,61573.0,61572.0,0.60620975]
[1722646234155,0.53130709,61573.0,61572.0,1.10544375]
[1722646234358,0.53130709,61573.0,61572.0,0.84982675]
[1722646234767,0.53230709,61573.0,61572.0,0.86182675]
[1722646235369,0.51830709,61573.0,61572.0,0.86182675]
[1722646235587,0.51830709,61573.0,61572.0,0.89438675]
[1722646235788,0.51830709,61573.0,61572.0,1.15200375]
[1722646235789,0.51930709,61573.0,61572.0,1.15200375]
[1722646236005,0.51830709,61573.0,61572.0,1.14000375]
[1722646236396,0.51730709,61573.0,61572.0,1.14000375]
[1722646236720,0.51830709,61573.0,61572.0,1.14000375]
[1722646237130,0.51830709,61573.0,61572.0,1.35460375]
[1722646237342,0.51830709,61573.0,61572.0,1.72195086]
[1722646238303,0.51830709,61573.0,61572.0,1.61822075]
[1722646238517,0.51830709,61573.0,61572.0,1.80660699]
[1722646239595,0.51830709,61573.0,61572.0,1.78460699]
[1722646239789,0.51830709,61573.0,61572.0,1.78665724]
[1722646239992,0.51830709,61573.0,61572.0,1.74190699]
[1722646240410,0.51830709,61573.0,61572.0,1.46628999]
[1722646240831,0.51830709,61573.0,61572.0,1.47628999]
[1722646241018,0.51830709,61573.0,61572.0,1.47828999]
[1722646241774,0.51830709,61573.0,61572.0,1.47813945]
[1722646242401,0.51830709,61573.0,61572.0,0.79030545]
[1722646242577,0.51830709,61573.0,61572.0,1.03392245]
[1722646242776,0.51830709,61573.0,61572.0,1.27753945]
[1722646243638,0.51830709,61573.0,61572.0,0.66849745]
[1722646243813,0.51830709,61573.0,61572.0,0.41240175]
[1722646244212,0.51830709,61573.0,61572.0,0.28545924]
[1722646245259,0.51730709,61573.0,61572.0,0.27145924]
[1722646245469,0.51830709,61573.0,61572.0,0.30745924]
[1722646245631,0.51830709,61573.0,61572.0,0.40745924]
[1722646245835,0.51830709,61573.0,61572.0,0.39445924]
[1722646246053,0.51730709,61573.0,61572.0,0.38045924]
[1722646246261,0.51830709,61573.0,61572.0,0.39345924]
[1722646246468,0.51830709,61573.0,61572.0,0.40745924]
[1722646246940,0.51830709,61573.0,61572.0,0.38045924]
[1722646246941,0.51730709,61573.0,61572.0,0.38045924]
[1722646247090,0.51830709,61573.0,61572.0,0.40745924]
[1722646247294,0.51830709,61573.0,61572.0,0.96148424]
[1722646247469,0.51830709,61573.0,61572.0,1.32756402]
[1722646247654,0.51830709,61573.0,61572.0,1.33956402]
[1722646247860,0.51830709,61573.0,61572.0,1.32756402]
[1722646248271,0.51830709,61573.0,61572.0,1.32821087]
[1722646248920,0.51830709,61573.0,61572.0,1.20510124]
[1722646249147,0.51830709,61573.0,61572.0,1.32831296]
[1722646249557,0.51830709,61573.0,61572.0,1.32830744]
[1722646249726,0.51830709,61573.0,61572.0,0.65247344]
[1722646249939,0.51830709,61573.0,61572.0,0.89609044]
[1722646251776,0.51830709,61573.0,61572.0,0.53066544]
[1722646251926,0.51830709,61573.0,61572.0,0.66205114]
[1722646252313,0.51830709,61573.0,61572.0,0.90566814]
[1722646252756,0.51830709,61573.0,61572.0,0.66205114]
[1722646253070,0.51830709,61573.0,61572.0,0.90566814]
[1722646253745,0.51830709,61573.0,61572.0,0.53066544]
[1722646253950,0.59970709,61573.0,61572.0,0.40745924]
[1722646254370,0.59970709,61573.0,61572.0,0.52926724]
[1722646254616,0.59970709,61573.0,61572.0,0.38445924]
[1722646254617,0.66540709,61573.0,61572.0,0.38445924]
[1722646256643,0.66540709,61573.0,61572.0,0.52926724]
[1722646257582,0.66540709,61573.0,61572.0,0.40745924]
[1722646260191,0.51830709,61573.0,61572.0,0.89661906]
[1722646260533,0.51830709,61573.0,61572.0,0.65300206]
[1722646260534,0.51360296,61573.0,61572.0,0.65300206]
[1722646260653,0.51360296,61573.0,61572.0,0.89661906]
[1722646261628,0.51360296,61573.0,61572.0,1.14023606]
[1722646261795,0.51360296,61573.0,61572.0,1.13959227]
[1722646264335,0.51360296,61573.0,61572.0,0.89597527]
[1722646264730,0.51360296,61573.0,61572.0,0.89587402]
[1722646265348,0.51360296,61573.0,61572.0,0.53044902]
[1722646265556,0.51360296,61573.0,61572.0,0.40745924]
[1722646265767,0.59500296,61573.0,61572.0,0.40745924]
[1722646266011,0.66070296,61573.0,61572.0,0.38445924]
[1722646266449,0.66070296,61573.0,61572.0,0.027]
[1722646266627,0.66070296,61573.0,61571.0,0.03]
[1722646266628,0.263208,61572.0,61571.0,0.03]
[1722646266797,0.263208,61572.0,61563.0,0.00083]
[1722646266798,0.131824,61564.0,61563.0,0.00083]
[1722646266997,0.54006278,61564.0,61563.0,0.00083]
[1722646267200,0.43001062,61564.0,61563.0,0.00083]
[1722646267404,0.63058656,61564.0,61563.0,0.00083]
[1722646268060,0.63066402,61564.0,61563.0,0.00083]
[1722646268331,0.75218445,61564.0,61563.0,0.00083]
[1722646268556,0.63066402,61564.0,61563.0,0.00083]
[1722646269110,0.55227531,61564.0,61563.0,0.00083]
[1722646269353,0.56127531,61564.0,61563.0,0.00183]
[1722646269855,0.44945131,61564.0,61563.0,0.00183]
[1722646270298,0.17209937,61564.0,61563.0,0.00183]
[1722646270484,0.17616094,61564.0,61563.0,0.00183]
[1722646270705,0.1859264,61564.0,61563.0,0.00183]
[1722646271115,0.18186483,61564.0,61563.0,0.00183]
[1722646271311,0.17186483,61564.0,61563.0,0.00183]
[1722646271516,0.17486483,61564.0,61563.0,0.00183]
[1722646271935,0.16586483,61564.0,61563.0,0.00083]
[1722646272139,0.15609937,61564.0,61563.0,0.00083]
[1722646272425,0.15809937,61564.0,61563.0,0.00083]
[1722646274027,0.16216058,61564.0,61563.0,0.00083]
[1722646274179,0.34252011,61564.0,61563.0,0.00083]
[1722646274558,0.15809937,61564.0,61563.0,0.00083]
[1722646274903,0.16216094,61564.0,61563.0,0.00083]
[1722646275024,0.15916094,61564.0,61563.0,0.00083]
[1722646275221,0.15716094,61564.0,61563.0,0.00083]
[1722646275560,0.16116094,61564.0,61563.0,0.00083]
[1722646275723,0.16316094,61564.0,61563.0,0.00083]
[1722646276079,0.16116094,61564.0,61563.0,0.00083]
[1722646276282,0.16316094,61564.0,61563.0,0.00083]
[1722646276421,0.16316069,61564.0,61563.0,0.00083]
[1722646276865,0.16516069,61564.0,61563.0,0.00083]
[1722646277913,0.16116069,61564.0,61563.0,0.00083]
[1722646278322,0.16416069,61564.0,61563.0,0.00083]
[1722646278560,0.16009937,61564.0,61563.0,0.00083]
[1722646278748,0.15709937,61564.0,61563.0,0.00083]
[1722646278974,0.16116096,61564.0,61563.0,0.00083]
[1722646279162,0.16416096,61564.0,61563.0,0.00083]
[1722646280132,0.16009937,61564.0,61563.0,0.00083]
[1722646280273,0.16416076,61564.0,61563.0,0.00083]
[1722646280678,0.16009937,61564.0,61563.0,0.00083]
[1722646282536,0.16009937,61564.0,61563.0,0.15828924]
[1722646283097,0.007,61564.0,61563.0,0.15828924]
[1722646283215,0.007,61564.0,61563.0,1.02941663]
[1722646284029,0.004,61564.0,61563.0,1.02941663]
[1722646284267,0.50091301,61573.0,61571.0,0.1]
[1722646284469,0.50091301,61573.0,61572.0,0.18045924]
[1722646284713,0.50091301,61573.0,61572.0,0.28045924]
[1722646286277,0.50191301,61573.0,61572.0,0.28945924]
[1722646286471,0.50091301,61573.0,61572.0,0.28045924]
[1722646287003,0.50091301,61573.0,61572.0,0.28145924]
[1722646287004,0.50191301,61573.0,61572.0,0.28145924]
[1722646287225,0.50191301,61573.0,61572.0,0.25845924]
[1722646287398,0.50191301,61573.0,61572.0,0.26645924]
[1722646287399,0.64841301,61573.0,61572.0,0.26645924]
[1722646287800,0.64841301,61573.0,61572.0,0.26745924]
[1722646287801,0.64941301,61573.0,61572.0,0.26745924]
[1722646288032,0.64941301,61573.0,61572.0,0.01]
[1722646288547,0.64841301,61573.0,61572.0,0.009]
[1722646288749,0.64841301,61573.0,61572.0,0.001]
[1722646289098,0.64941301,61573.0,61572.0,0.012]
[1722646289297,0.64841301,61573.0,61572.0,0.001]
[1722646289736,0.64941301,61573.0,61572.0,0.01]
[1722646290286,0.64941301,61573.0,61571.0,0.03]
[1722646290287,0.64741301,61573.0,61571.0,0.03]
[1722646290413,0.64741301,61573.0,61572.0,0.01]
[1722646290414,0.64941301,61573.0,61572.0,0.01]
[1722646290615,0.64841301,61573.0,61572.0,0.001]
[1722646290818,0.64841301,61573.0,61571.0,0.03]
[1722646290819,0.64741301,61573.0,61571.0,0.03]
[1722646291177,0.64841301,61573.0,61572.0,0.001]
[1722646291896,0.64841301,61573.0,61571.0,0.03]
[1722646291897,0.64741301,61573.0,61571.0,0.03]
[1722646292043,0.64741301,61573.0,61571.0,0.031]
[1722646292243,0.64741301,61573.0,61572.0,0.001]
[1722646292448,0.64741301,61573.0,61571.0,0.031]
[1722646292649,0.65704471,61573.0,61571.0,0.031]
[1722646292859,0.65704471,61573.0,61572.0,0.003]
[1722646293100,0.65704471,61573.0,61571.0,0.031]
[1722646293432,0.65704471,61573.0,61572.0,0.002]
[1722646294050,0.65704471,61573.0,61572.0,0.003]
[1722646294261,0.65704471,61573.0,61572.0,0.001]
[1722646294865,0.65704471,61573.0,61571.0,0.03]
[1722646295093,0.65704471,61573.0,61572.0,0.001]
[1722646295645,0.59224471,61573.0,61572.0,0.15745924]
[1722646295795,0.51054471,61573.0,61572.0,0.18045924]
[1722646296002,0.51054471,61573.0,61572.0,0.28045924]
[1722646296219,0.51054471,61573.0,61572.0,0.28345924]
[1722646296421,0.51054471,61573.0,61572.0,0.28045924]
[1722646296826,0.51054471,61573.0,61572.0,0.28545924]
[1722646297205,0.51054471,61573.0,61572.0,0.28045924]
[1722646297413,0.51054471,61573.0,61572.0,0.89950124]
[1722646297414,0.51154471,61573.0,61572.0,0.89950124]
[1722646297638,0.51154471,61573.0,61572.0,0.72238424]
[1722646297838,0.51154471,61573.0,61572.0,0.96600124]
[1722646298358,0.51254471,61573.0,61572.0,0.72438424]
[1722646298736,0.51254471,61573.0,61572.0,0.48076724]
[1722646298938,0.51254471,61573.0,61572.0,0.72438424]
[1722646299287,0.51254471,61573.0,61572.0,0.96800124]
[1722646299501,0.51254471,61573.0,61572.0,0.72438424]
[1722646299882,0.51254471,61573.0,61572.0,0.35895924]
[1722646300153,0.51254471,61573.0,61572.0,0.29245924]
[1722646303018,0.51254471,61573.0,61572.0,0.41426724]
[1722646303424,0.51254471,61573.0,61572.0,0.90150124]
[1722646304227,0.51254471,61573.0,61572.0,0.65788424]
[1722646305078,0.51254471,61573.0,61572.0,0.73748424]
[1722646305327,0.51254471,61573.0,61572.0,0.98110124]
[1722646305499,0.51254471,61573.0,61572.0,0.73748424]
[1722646305856,0.51254471,61573.0,61572.0,0.98110124]
[1722646306288,0.51254471,61573.0,61572.0,0.73748424]
[1722646306460,0.51254471,61573.0,61572.0,0.65788424]
[1722646306639,0.51254471,61573.0,61572.0,0.29245924]
[1722646308332,0.51254471,61573.0,61572.0,0.41426724]
[1722646308654,0.51254471,61573.0,61572.0,0.65788424]
[1722646309459,0.51254471,61573.0,61572.0,0.29245924]
[1722646310240,0.59394471,61573.0,61572.0,0.29245924]
[1722646311369,0.59394471,61573.0,61572.0,0.22245924]
[1722646312940,0.65554471,61573.0,61572.0,0.22245924]
[1722646313351,0.59394471,61573.0,61572.0,0.22245924]
[1722646315707,0.59394471,61573.0,61572.0,0.19945924]
[1722646316742,0.59333338,61573.0,61572.0,0.19945924]
[1722646318310,0.59333338,61573.0,61572.0,0.22245924]
[1722646318521,0.51193338,61573.0,61572.0,0.22245924]
[1722646319312,0.51193338,61573.0,61572.0,0.89150124]
[1722646320190,0.51193338,61573.0,61572.0,1.13511824]
[1722646320427,0.51193338,61573.0,61572.0,1.25773375]
[1722646320636,0.51193338,61573.0,61572.0,1.25573375]
[1722646321057,0.51193338,61573.0,61572.0,1.25501234]
[1722646321230,0.51193338,61573.0,61572.0,1.26501234]
[1722646321409,0.51193338,61573.0,61572.0,1.25501234]
[1722646321753,0.51193338,61573.0,61572.0,1.25701234]
[1722646323066,0.51193338,61573.0,61572.0,1.01139534]
[1722646323266,0.51193338,61573.0,61572.0,0.44116134]
[1722646323484,0.51193338,61573.0,61572.0,0.44140185]
[1722646323768,0.51193338,61573.0,61572.0,0.93063585]
[1722646323967,0.51193338,61573.0,61572.0,0.68558057]
[1722646324374,0.51193338,61573.0,61572.0,0.44196357]
[1722646324519,0.51193338,61573.0,61572.0,0.70858057]
[1722646324941,0.51193338,61573.0,61572.0,0.46496357]
[1722646325143,0.59383338,61573.0,61572.0,0.09945924]
[1722646326029,0.59383338,61573.0,61572.0,0.012]
[1722646326030,0.89262017,61573.0,61572.0,0.012]
[1722646326204,1.05811491,61573.0,61572.0,0.012]
[1722646326377,0.93630891,61573.0,61572.0,0.012]
[1722646326738,0.93630891,61573.0,61572.0,0.01]
[1722646326739,0.73670891,61573.0,61572.0,0.01]
[1722646326950,0.85728703,61573.0,61572.0,0.00083]
[1722646327324,0.73570891,61573.0,61572.0,0.00083]
[1722646328108,0.85729729,61573.0,61572.0,0.00083]
[1722646328268,0.73570891,61573.0,61572.0,0.00083]
[1722646328833,0.93430891,61573.0,61572.0,0.00083]
[1722646328970,0.93430891,61573.0,61572.0,0.00183]
[1722646328971,1.29972791,61573.0,61572.0,0.00183]
[1722646329170,1.2018753,61573.0,61572.0,0.00083]
[1722646329436,1.05611491,61573.0,61572.0,0.00083]
[1722646329584,0.92430891,61573.0,61572.0,0.00183]
[1722646329787,0.93430891,61573.0,61572.0,0.00183]
[1722646330230,1.05484323,61573.0,61572.0,0.00183]
[1722646330507,0.92303723,61573.0,61572.0,0.00183]
[1722646331036,0.73443723,61573.0,61572.0,0.00183]
[1722646331262,0.85601169,61573.0,61572.0,0.00183]
[1722646331643,0.85601175,61573.0,61572.0,0.00183]
[1722646331840,0.65343338,61573.0,61572.0,0.00183]
[1722646332256,0.65343338,61573.0,61572.0,0.15928924]
[1722646332457,0.50993338,61573.0,61572.0,0.18228924]
[1722646333131,0.50030168,61573.0,61572.0,0.18228924]
[1722646333333,0.50030168,61573.0,61572.0,0.18128924]
[1722646333532,0.50989567,61573.0,61572.0,0.18128924]
[1722646333673,0.50989567,61573.0,61572.0,0.18928924]
[1722646334687,0.50989567,61573.0,61572.0,0.16628924]
[1722646335450,0.65509567,61573.0,61572.0,0.00883]
[1722646335650,0.70371921,61573.0,61572.0,0.01583]
[1722646335791,0.65609567,61573.0,61572.0,0.01583]
[1722646336222,0.72903099,61573.0,61572.0,0.01583]
[1722646336831,0.65609567,61573.0,61572.0,0.01583]
[1722646337037,0.8320947,61573.0,61572.0,0.01583]
[1722646337247,0.8420947,61573.0,61572.0,0.01583]
[1722646337475,0.9377084,61573.0,61572.0,0.01583]
[1722646337806,0.82614954,61573.0,61572.0,0.01583]
[1722646338085,1.0695144,61573.0,61572.0,0.01583]
[1722646338235,0.94795554,61573.0,61572.0,0.01583]
[1722646338560,0.94695554,61573.0,61572.0,0.00883]
[1722646338960,1.42418154,61573.0,61572.0,0.00883]
[1722646339280,1.45418154,61573.0,61572.0,0.00083]
[1722646339492,1.69779454,61573.0,61572.0,0.00183]
[1722646340115,1.45418154,61573.0,61572.0,0.00183]
[1722646340318,1.45418154,61573.0,61572.0,0.00083]
[1722646340535,1.45418154,61573.0,61572.0,0.00183]
[1722646340536,1.86125378,61573.0,61572.0,0.00183]
[1722646340746,1.61764078,61573.0,61572.0,0.00083]
[1722646341082,1.62464078,61573.0,61572.0,0.00183]
[1722646341965,1.38102778,61573.0,61572.0,0.00183]
[1722646342114,1.39502778,61573.0,61572.0,0.00283]
[1722646342317,1.63864078,61573.0,61572.0,0.00283]
[1722646342552,1.63864078,61573.0,61572.0,0.00183]
[1722646342553,0.7493976,61573.0,61572.0,0.00183]
[1722646342774,0.9012036,61573.0,61572.0,0.00183]
[1722646342970,0.9152036,61573.0,61572.0,0.00283]
[1722646343202,0.8952036,61573.0,61572.0,0.00283]
[1722646343401,0.8682036,61573.0,61572.0,0.00083]
[1722646343558,0.7363976,61573.0,61572.0,0.00083]
[1722646343757,0.88579838,61573.0,61572.0,0.00283]
[1722646343963,1.59358232,61573.0,61572.0,0.00283]
[1722646344164,1.47217458,61573.0,61572.0,0.00283]
[1722646344407,1.61792733,61573.0,61572.0,0.00183]
[1722646344630,1.61192733,61573.0,61572.0,0.00183]
[1722646344838,1.61792733,61573.0,61572.0,0.00283]
[1722646345038,1.60592733,61573.0,61572.0,0.00183]
[1722646345245,1.60592733,61573.0,61563.0,0.00083]
[1722646345246,0.63912,61564.0,61563.0,0.00083]
[1722646345508,1.05383968,61564.0,61563.0,0.00083]
[1722646345707,1.46442875,61564.0,61563.0,0.00083]
[1722646345908,1.6101815,61564.0,61563.0,0.00083]
[1722646346141,1.6101815,61564.0,61536.0,0.10157439]
[1722646346142,0.01,61548.0,61536.0,0.10157439]
[1722646346466,0.01,61548.0,61536.0,0.25745924]
[1722646346467,0.1491,61545.0,61536.0,0.25745924]
[1722646346586,0.00406275,61544.0,61536.0,0.25745924]
[1722646346791,0.00406275,61544.0,61537.0,0.065063]
[1722646346991,0.00948183,61543.0,61537.0,0.065063]
[1722646347192,0.00406272,61542.0,61537.0,0.065063]
[1722646347599,0.00406272,61542.0,61527.0,0.1]
[1722646347600,0.1886,61540.0,61527.0,0.1]
[1722646347797,0.00406308,61539.0,61528.0,0.15745924]
[1722646348209,0.00948183,61538.0,61528.0,0.15745924]
[1722646348422,0.00406307,61537.0,61529.0,0.065069]
[1722646348627,0.00406307,61537.0,61536.0,0.001]
[1722646349172,0.00406307,61537.0,61530.0,0.15745924]
[1722646349596,0.00406307,61537.0,61531.0,0.023]
[1722646349785,0.00406307,61537.0,61532.0,0.15745924]
[1722646349990,0.00406299,61539.0,61532.0,0.15745924]
[1722646350186,0.00900369,61538.0,61536.0,0.002]
[1722646350530,0.00406299,61537.0,61536.0,0.002]
[1722646350705,0.00406299,61543.0,61536.0,0.01819396]
[1722646351108,0.00900307,61542.0,61536.0,0.01819396]
[1722646351286,0.004,61540.0,61536.0,0.01819396]
[1722646351496,0.1391,61545.0,61536.0,0.01619396]
[1722646351497,0.013074,61539.0,61536.0,0.01619396]
[1722646352600,0.00406295,61538.0,61536.0,0.02019396]
[1722646352801,0.00406295,61538.0,61536.0,0.01819396]
[1722646353241,0.0090192,61537.0,61536.0,0.01619396]
[1722646353370,0.00406295,61544.0,61536.0,0.01919396]
[1722646353573,0.0090192,61543.0,61536.0,0.01919396]
[1722646354162,0.1485876,61545.0,61536.0,0.01919396]
[1722646354362,0.0090192,61544.0,61536.0,0.02419396]
[1722646354628,0.00406292,61543.0,61536.0,0.01919396]
[1722646354800,0.0707,61537.0,61536.0,0.01619396]
[1722646355159,0.0707,61537.0,61536.0,0.01719396]
[1722646355160,0.06476342,61537.0,61536.0,0.01719396]
[1722646355350,0.06476342,61537.0,61536.0,0.01619396]
[1722646355553,0.07378432,61537.0,61536.0,0.01719396]
[1722646355728,0.07378432,61537.0,61536.0,0.01619396]
[1722646356188,0.0697209,61537.0,61536.0,0.01619396]
[1722646356945,0.0797209,61537.0,61536.0,0.01619396]
[1722646357146,0.2015979,61537.0,61536.0,0.01619396]
[1722646357350,0.0837843,61537.0,61536.0,0.01619396]
[1722646358042,0.0747843,61537.0,61536.0,0.01619396]
[1722646359159,0.0747843,61537.0,61536.0,0.01702396]
[1722646359701,0.61216824,61537.0,61536.0,0.01702396]
[1722646360082,1.11967824,61537.0,61536.0,0.00083]
[1722646360393,1.11403502,61537.0,61536.0,0.00083]
[1722646360853,1.11303465,61537.0,61536.0,0.00083]
[1722646361023,1.12283301,61537.0,61536.0,0.00083]
[1722646361223,1.13683301,61537.0,61536.0,0.00183]
[1722646361565,1.13749775,61537.0,61536.0,0.00183]
[1722646361787,1.13749775,61537.0,61536.0,0.00083]
[1722646361788,1.12349775,61537.0,61536.0,0.00083]
[1722646362110,1.13649775,61537.0,61536.0,0.00183]
[1722646362376,1.14249775,61537.0,61536.0,0.00283]
[1722646362574,1.14249775,61537.0,61536.0,0.00083]
[1722646362575,1.36725275,61537.0,61536.0,0.00083]
[1722646363008,1.38125275,61537.0,61536.0,0.00183]
[1722646363643,1.55255275,61537.0,61536.0,0.00183]
[1722646364086,1.54455275,61537.0,61536.0,0.00183]
[1722646364536,1.55155275,61537.0,61536.0,0.00183]
[1722646364743,1.55155275,61537.0,61536.0,0.00283]
[1722646364744,1.55777246,61537.0,61536.0,0.00283]
[1722646364955,1.54477246,61537.0,61536.0,0.00083]
[1722646365302,1.56477246,61537.0,61536.0,0.00283]
[1722646365687,1.53877246,61537.0,61536.0,0.00083]
[1722646365904,1.54477246,61537.0,61536.0,0.00183]
[1722646366126,1.55877246,61537.0,61536.0,0.00283]
[1722646366951,1.3984839,61537.0,61536.0,0.00283]
[1722646367089,1.47939318,61537.0,61536.0,0.00283]
[1722646367289,0.1427,61522.0,61520.0,0.01]
[1722646367586,0.01406408,61521.0,61520.0,0.02619396]
[1722646367717,0.38868308,61521.0,61520.0,0.02619396]
[1722646368968,0.14486408,61521.0,61520.0,0.02619396]
[1722646369165,0.01295508,61521.0,61520.0,0.02619396]
[1722646369371,0.01395508,61521.0,61520.0,0.02619396]
[1722646369599,0.14586408,61521.0,61520.0,0.02619396]
[1722646369801,0.01395508,61521.0,61520.0,0.02619396]
[1722646370047,0.009891,61521.0,61520.0,0.02619396]
[1722646370227,0.01395518,61521.0,61520.0,0.02619396]
[1722646370417,0.009891,61521.0,61520.0,0.02619396]
[1722646370741,0.001,61521.0,61520.0,0.02619396]
[1722646370857,0.00406408,61524.0,61520.0,0.02619396]
[1722646371066,0.4785,61532.0,61520.0,0.02619396]
[1722646371276,0.002,61521.0,61520.0,0.02619396]
[1722646371486,0.002,61521.0,61520.0,0.03119396]
[1722646371904,0.00406404,61531.0,61520.0,0.02619396]
[1722646372129,0.48799789,61532.0,61520.0,0.02619396]
[1722646372327,0.48799789,61532.0,61520.0,0.02719396]
[1722646372328,0.00860912,61530.0,61520.0,0.02719396]
[1722646372554,0.50399789,61532.0,61522.0,0.1]
[1722646372555,0.00406403,61529.0,61522.0,0.1]
[1722646372716,0.01267315,61529.0,61522.0,0.25745924]
[1722646372921,0.0805,61539.0,61523.0,0.22513363]
[1722646373083,0.4785,61546.0,61537.0,0.1]
[1722646373285,0.4785,61553.0,61539.0,0.0788]
[1722646373490,0.4785,61553.0,61540.0,0.15903363]
[1722646373901,0.48804504,61553.0,61540.0,0.15903363]
[1722646374150,0.00406246,61552.0,61540.0,0.15903363]
[1722646374350,0.48804504,61553.0,61540.0,0.15903363]
[1722646374554,0.49404504,61553.0,61540.0,0.15903363]
[1722646374708,0.07875194,61543.0,61540.0,0.00157439]
[1722646374917,0.00406264,61542.0,61540.0,0.00157439]
[1722646375153,0.00406264,61542.0,61537.0,0.01619396]